bitfinex/quotes_SOLUSD_20220216
["timestamp","ask_amount","ask_price","bid_price","bid_amount"]
[1644998126738,15.75154392,104.24,104.2,14.3899]
[1644998127337,1.35794392,104.23,104.2,14.3899]
[1644998129044,1.35794392,104.23,104.19,14.3942]
[1644998129746,15.75314392,104.23,104.19,14.3942]
[1644998129945,15.75314392,104.23,104.18,23.2998]
[1644998130150,1.35794392,104.22,104.18,23.2998]
[1644998130345,1.35794392,104.22,104.18,37.6954]
[1644998131846,15.75434392,104.22,104.18,37.6954]
[1644998132049,1.35794392,104.22,104.18,37.6954]
[1644998132648,1.35794392,104.23,104.18,37.6954]
[1644998133248,1.35794392,104.22,104.18,37.6954]
[1644998133648,1.35794392,104.23,104.18,37.6954]
[1644998133850,15.75344392,104.23,104.18,37.6954]
[1644998134050,1.35794392,104.22,104.18,37.6954]
[1644998135868,15.75384392,104.22,104.18,37.6954]
[1644998136071,1.35794392,104.22,104.18,37.6954]
[1644998137970,15.75394392,104.22,104.18,23.2998]
[1644998141071,14.396,104.22,104.18,23.2998]
[1644998141275,15.75394392,104.22,104.18,23.2998]
[1644998143078,15.75394392,104.22,104.17,14.3967]
[1644998143079,1.35794392,104.21,104.14,13.79]
[1644998143281,1.35794392,104.18,104.1,5.01211756]
[1644998143782,1.35794392,104.19,104.11,22.6714]
[1644998144180,1.35794392,104.19,104.11,120.1414]
[1644998144381,1.35794392,104.19,104.11,134.1814]
[1644998144985,15.75754392,104.2,104.11,134.7949]
[1644998145284,1.35794392,104.2,104.11,214.00602618]
[1644998145484,48.46134392,104.21,104.11,214.00602618]
[1644998145884,25.14464392,104.21,104.11,214.00602618]
[1644998146085,23.7867,104.21,104.11,214.00602618]
[1644998148090,38.1851,104.21,104.11,116.53602618]
[1644998148291,23.7867,104.21,104.11,51.1149]
[1644998148489,25.14464392,104.21,104.12,2.18460621]
[1644998148690,25.14464392,104.21,104.14,14.397]
[1644998149091,23.7867,104.21,104.14,14.397]
[1644998149292,23.7867,104.21,104.15,97.47]
[1644998149497,23.7867,104.21,104.15,120.5048]
[1644998150793,23.7867,104.21,104.15,134.902]
[1644998154101,1.35794392,104.22,104.15,134.902]
[1644998154323,1.35794392,104.22,104.15,148.942]
[1644998154905,1.35794392,104.23,104.15,148.942]
[1644998155304,1.35794392,104.23,104.16,48.32]
[1644998155510,1.35794392,104.23,104.17,38.919]
[1644998155708,1.35794392,104.23,104.17,24.5248]
[1644998156605,1.35794392,104.23,104.14,13.79]
[1644998156907,1.35794392,104.22,104.15,24.8812]
[1644998157106,1.35794392,104.22,104.15,136.7481]
[1644998157305,1.35794392,104.23,104.15,136.7481]
[1644998157504,1.35794392,104.23,104.16,48.32]
[1644998157705,1.35794392,104.23,104.17,24.8812]
[1644998158605,15.75314392,104.23,104.17,24.8812]
[1644998158814,1.35794392,104.22,104.13,22.5231]
[1644998159205,1.35794392,104.21,104.13,22.5231]
[1644998159407,26.06324392,104.21,104.13,22.5231]
[1644998159608,1.35794392,104.2,104.13,22.5231]
[1644998160811,15.75884392,104.2,104.13,22.5231]
[1644998161712,15.75884392,104.2,104.11,24.9114]
[1644998161940,22.516,104.19,104.11,48.0383]
[1644998162138,14.4046,104.17,104.11,48.0383]
[1644998162544,23.87394392,104.19,104.11,145.5083]
[1644998162737,22.516,104.19,104.11,162.60942618]
[1644998162937,22.516,104.19,104.11,162.85942618]
[1644998163138,22.516,104.19,104.11,79.54262618]
[1644998163540,22.516,104.19,104.11,64.62610621]
[1644998163838,22.516,104.19,104.11,62.4415]
[1644998164239,36.9167,104.19,104.11,62.4415]
[1644998165245,38.27464392,104.19,104.11,62.4415]
[1644998165544,38.27464392,104.19,104.11,48.0383]
[1644998167840,38.27464392,104.19,104.11,62.4417]
[1644998169846,36.9167,104.19,104.11,62.4417]
[1644998170346,36.9167,104.19,104.11,48.0383]
[1644998170547,38.27464392,104.19,104.11,48.0383]
[1644998171850,38.27464392,104.19,104.11,62.4411]
[1644998172151,38.27464392,104.19,104.11,48.0383]
[1644998173356,38.27464392,104.19,104.08,13.79]
[1644998173559,1.35794392,104.18,104.09,23.0511]
[1644998173756,14.4045,104.17,104.1,14.4043]
[1644998175858,1.35794392,104.18,104.1,14.4043]
[1644998176061,14.4026,104.18,104.1,14.6543]
[1644998178263,14.4026,104.18,104.1,28.8159]
[1644998178463,14.4026,104.18,104.1,28.5659]
[1644998179064,22.6922,104.17,104.1,28.5659]
[1644998179264,14.4044,104.17,104.1,28.5659]
[1644998181868,39.1051,104.18,104.1,30.75050621]
[1644998182067,39.1051,104.18,104.1,31.00050621]
[1644998182473,39.1051,104.18,104.1,30.75050621]
[1644998184270,39.1051,104.18,104.1,128.22050621]
[1644998184474,14.4027,104.18,104.12,14.4012]
[1644998184670,14.401,104.19,104.12,14.4012]
[1644998184876,14.401,104.19,104.12,16.58580621]
[1644998185272,14.401,104.19,104.12,14.4012]
[1644998185874,14.401,104.19,104.13,14.4006]
[1644998186074,15.75784392,104.2,104.13,14.4006]
[1644998186373,14.3999,104.2,104.13,14.4006]
[1644998186777,14.3999,104.2,104.14,6.0]
[1644998186976,14.3999,104.2,104.13,16.58520621]
[1644998188110,24.6511,104.19,104.13,16.58520621]
[1644998189903,15.75644392,104.21,104.13,16.58520621]
[1644998190102,15.75644392,104.21,104.14,24.4842]
[1644998190405,15.75644392,104.21,104.14,38.8823]
[1644998193907,15.75644392,104.21,104.12,14.4007]
[1644998194109,1.35794392,104.19,104.12,37.4928]
[1644998194307,15.75964392,104.19,104.12,37.4928]
[1644998194509,22.8274,104.18,104.12,23.0921]
[1644998195206,37.2304,104.18,104.12,23.0921]
[1644998195407,38.58834392,104.18,104.12,23.0921]
[1644998198016,38.58834392,104.18,104.11,22.5001]
[1644998199913,38.58834392,104.18,104.11,36.9031]
[1644998200112,37.2304,104.18,104.11,36.9031]
[1644998200314,22.8274,104.18,104.11,39.08770621]
[1644998200521,22.8274,104.18,104.11,39.33770621]
[1644998200914,22.8274,104.18,104.11,39.08770621]
[1644998201317,37.2302,104.18,104.11,22.5001]
[1644998202318,38.58814392,104.18,104.11,22.5001]
[1644998202523,134.7002,104.18,104.07,1.32684515]
[1644998202721,1.35794392,104.17,104.06,22.966]
[1644998202919,14.4088,104.14,104.06,22.966]
[1644998203919,14.4088,104.14,104.06,37.3748]
[1644998204319,14.4088,104.14,104.06,22.966]
[1644998204521,16.82933255,104.14,104.04,138.68084515]
[1644998204722,37.4623,104.13,104.06,2.18460621]
[1644998204922,37.4623,104.13,104.04,61.7191]
[1644998205323,37.4623,104.13,104.04,63.90370621]
[1644998205521,37.4623,104.13,104.05,97.47]
[1644998205722,37.4623,104.13,104.04,97.81270621]
[1644998205923,37.4623,104.13,104.05,2.18460621]
[1644998206124,37.4623,104.13,104.05,2.43460621]
[1644998206849,37.4623,104.13,104.05,16.84420621]
[1644998207025,37.4623,104.13,104.06,6.0]
[1644998207828,37.4623,104.13,104.05,16.84420621]
[1644998208126,37.4623,104.13,104.06,6.0]
[1644998209731,37.4623,104.13,104.05,16.84420621]
[1644998210431,37.4623,104.13,104.05,14.6596]
[1644998211735,23.0517,104.13,104.06,145.79]
[1644998211933,23.0517,104.13,104.07,14.4077]
[1644998212434,24.339,104.16,104.07,14.6577]
[1644998212631,24.9616,104.15,104.07,38.7631]
[1644998213231,24.9616,104.15,104.07,38.5131]
[1644998214861,39.3684,104.15,104.07,38.5131]
[1644998215261,39.3684,104.15,104.07,24.1054]
[1644998215457,39.3684,104.15,104.08,97.47]
[1644998216262,39.3684,104.15,104.07,24.1054]
[1644998216960,24.9616,104.15,104.08,14.4066]
[1644998217161,24.9616,104.15,104.08,14.6566]
[1644998217365,24.9616,104.15,104.08,14.4066]
[1644998217559,24.9616,104.15,104.08,14.6566]
[1644998217760,24.9616,104.15,104.08,14.4066]
[1644998218160,39.3683,104.15,104.08,14.4066]
[1644998220362,39.3683,104.15,104.07,86.8333]
[1644998220564,39.3683,104.15,104.07,87.0833]
[1644998220764,39.3683,104.15,104.07,86.8333]
[1644998223382,39.3683,104.15,104.07,184.3033]
[1644998223684,24.9616,104.15,104.07,186.73790621]
[1644998225887,24.9616,104.15,104.07,193.54990621]
[1644998226087,24.9616,104.15,104.08,103.47]
[1644998226292,24.9616,104.15,104.09,14.4043]
[1644998226690,14.4041,104.17,104.09,118.3353]
[1644998226889,1.35794392,104.18,104.1,2.1907097]
[1644998227086,24.82384392,104.19,104.1,2.4407097]
[1644998227289,24.82384392,104.19,104.11,97.47]
[1644998227490,24.82384392,104.19,104.11,121.1494]
[1644998227787,1.35794392,104.19,104.12,114.0615097]
[1644998227991,1.35794392,104.2,104.12,114.0615097]
[1644998228187,1.35794392,104.2,104.12,114.3115097]
[1644998228389,1.35794392,104.2,104.12,121.7935097]
[1644998228887,1.35794392,104.2,104.12,22.1328]
[1644998229589,50.37424392,104.21,104.12,14.6508]
[1644998229992,50.37424392,104.21,104.12,29.2497]
[1644998230792,14.4,104.2,104.12,29.2497]
[1644998231997,24.2812,104.19,104.12,29.2497]
[1644998234312,24.2812,104.19,104.12,14.6508]
[1644998234915,24.2812,104.19,104.12,14.4008]
[1644998236614,24.2812,104.19,104.12,14.6508]
[1644998238118,24.2812,104.19,104.12,14.4008]
[1644998238319,38.6824,104.19,104.11,38.0825]
[1644998239218,15.75804392,104.2,104.11,137.7432097]
[1644998239419,48.89224392,104.21,104.11,137.7432097]
[1644998239624,48.89224392,104.21,104.11,88.8432097]
[1644998239818,48.89224392,104.21,104.11,40.5232097]
[1644998240218,48.89224392,104.21,104.11,88.8432097]
[1644998240421,63.29094392,104.21,104.11,88.8432097]
[1644998242724,63.29094392,104.21,104.11,88.5932097]
[1644998242933,112.61794392,104.2,104.11,14.4031]
[1644998243129,14.4046,104.18,104.09,14.4046]
[1644998243331,1.35794392,104.17,104.08,24.303]
[1644998243529,11.66347647,104.17,104.08,24.303]
[1644998243730,10.30553255,104.17,104.08,121.773]
[1644998243931,7.885,104.17,104.08,24.303]
[1644998244129,1.35794392,104.18,104.09,24.5139]
[1644998244335,14.404,104.17,104.1,14.4039]
[1644998245634,23.9461,104.16,104.1,14.4039]
[1644998247140,23.9461,104.16,104.1,14.6539]
[1644998247541,23.9461,104.16,104.1,14.4039]
[1644998247742,23.9461,104.16,104.1,14.6539]
[1644998248342,23.9461,104.16,104.1,14.4039]
[1644998251146,23.9461,104.16,104.09,24.5139]
[1644998251346,38.3515,104.16,104.09,38.9197]
[1644998257577,38.3515,104.16,104.09,39.1697]
[1644998257973,23.9461,104.16,104.09,39.1697]
[1644998258174,23.9461,104.16,104.09,87.4897]
[1644998265489,23.9461,104.16,104.09,89.674903]
[1644998266489,1.35794392,104.18,104.09,89.674903]
[1644998266694,23.3742,104.18,104.09,104.3747563]
[1644998267090,23.3742,104.18,104.1,6.0]
[1644998267291,23.3742,104.18,104.12,14.4004]
[1644998267490,23.3742,104.18,104.12,39.2856]
[1644998267790,23.3742,104.18,104.12,39.5356]
[1644998268799,14.4012,104.19,104.12,39.5356]
[1644998269899,14.4012,104.19,104.12,53.6765]
[1644998270722,1.35794392,104.2,104.12,53.6765]
[1644998270923,49.90044392,104.21,104.12,104.181703]
[1644998271823,48.5425,104.21,104.12,118.8815563]
[1644998272423,48.5425,104.21,104.12,141.67168014]
[1644998273423,98.82794392,104.23,104.12,141.67168014]
[1644998273623,98.82794392,104.23,104.12,147.19168014]
[1644998273826,98.82794392,104.23,104.12,160.71692079]
[1644998274222,98.82794392,104.23,104.12,165.86292079]
[1644998274423,97.47,104.23,104.12,165.86292079]
[1644998275124,97.47,104.23,104.16,62.7131]
[1644998275325,1.35794392,104.24,104.16,87.3838]
[1644998275525,24.18554392,104.25,104.16,87.6338]
[1644998275925,24.18554392,104.25,104.16,89.819003]
[1644998276128,24.18554392,104.25,104.16,104.5188563]
[1644998277430,22.8276,104.25,104.16,104.5188563]
[1644998277828,22.8276,104.25,104.16,118.9538563]
[1644998280033,15.74984392,104.26,104.16,118.9538563]
[1644998280233,1.35794392,104.28,104.17,5.52]
[1644998280439,26.00704392,104.3,104.19,62.7085]
[1644998280640,26.00704392,104.3,104.2,23.1493]
[1644998280838,26.00704392,104.3,104.2,25.334503]
[1644998281440,1.35794392,104.29,104.2,23.1493]
[1644998281638,15.74564392,104.29,104.22,14.3894]
[1644998281860,22.7041,104.28,104.22,14.3894]
[1644998282840,37.0935,104.28,104.22,14.3894]
[1644998283142,22.7041,104.28,104.22,14.3894]
[1644998283643,1.35794392,104.31,104.22,39.2166]
[1644998283838,1.35794392,104.31,104.25,14.383]
[1644998284042,63.92684392,104.32,104.25,14.34420939]
[1644998290671,48.1851,104.32,104.25,14.34420939]
[1644998290872,24.9277,104.32,104.25,14.34420939]
[1644998292573,24.9277,104.32,104.26,48.32]
[1644998292774,24.9277,104.32,104.27,14.3791]
[1644998293575,1.35794392,104.35,104.27,14.6291]
[1644998293874,24.43984392,104.35,104.27,39.5999]
[1644998294274,23.0819,104.35,104.27,39.5999]
[1644998294475,23.0819,104.35,104.27,14.3791]
[1644998294780,41.24037647,104.35,104.27,14.3791]
[1644998295178,1.35794392,104.34,104.26,14.3834]
[1644998295575,1.35794392,104.33,104.26,14.3834]
[1644998295775,1.35794392,104.34,104.26,14.3834]
[1644998296982,14.3828,104.33,104.26,14.3834]
[1644998298681,15.74074392,104.33,104.26,14.3834]
[1644998301385,15.74074392,104.33,104.24,23.9393]
[1644998301585,25.68374392,104.32,104.25,14.3846]
[1644998301786,40.06824392,104.32,104.25,14.3846]
[1644998302595,1.35794392,104.31,104.2,61.748]
[1644998302787,13.79,104.3,104.17,22.9513]
[1644998302989,1.35794392,104.28,104.17,22.9513]
[1644998303187,15.14794392,104.28,104.17,22.9513]
[1644998303388,23.996,104.27,104.17,22.9513]
[1644998303691,23.996,104.27,104.17,71.2713]
[1644998303888,14.3926,104.26,104.17,71.2713]
[1644998305096,14.3926,104.26,104.17,71.5213]
[1644998305890,14.3926,104.26,104.19,14.3929]
[1644998306288,61.9422,104.27,104.19,14.3929]
[1644998306488,47.5518,104.27,104.19,14.3929]
[1644998306698,47.5518,104.27,104.19,21.6729]
[1644998306989,24.95014392,104.3,104.2,48.32]
[1644998307190,1.35794392,104.28,104.18,14.6998533]
[1644998307391,1.35794392,104.28,104.16,29.1348533]
[1644998307789,15.14794392,104.28,104.16,14.435]
[1644998307992,1.35794392,104.26,104.17,47.9719]
[1644998308194,25.38064392,104.27,104.19,14.3929]
[1644998308592,14.3936,104.25,104.19,14.3929]
[1644998309394,1.35794392,104.26,104.19,14.3929]
[1644998309594,25.38064392,104.27,104.19,14.3929]
[1644998310792,14.392,104.26,104.19,14.3929]
[1644998311197,15.74994392,104.26,104.19,14.3929]
[1644998311394,14.392,104.26,104.19,14.3929]
[1644998314195,15.74994392,104.26,104.19,14.3929]
[1644998314598,14.392,104.26,104.19,14.3929]
[1644998315000,14.392,104.26,104.19,111.8629]
[1644998315201,39.77124392,104.27,104.19,111.8629]
[1644998315399,24.0227,104.27,104.19,111.8629]
[1644998315625,24.0227,104.27,104.19,112.1129]
[1644998316204,24.0227,104.27,104.19,14.3929]
[1644998316400,38.4133,104.27,104.19,14.3929]
[1644998316799,39.77124392,104.27,104.19,14.3929]
[1644998317900,2.42053255,104.26,104.18,14.3944]
[1644998318101,14.3958,104.24,104.15,24.7071]
[1644998318499,16.81633255,104.24,104.15,24.7071]
[1644998319102,14.3958,104.24,104.15,24.7071]
[1644998319906,14.3958,104.24,104.12,112.761403]
[1644998320109,51.3879,104.24,104.12,210.231403]
[1644998320306,51.3879,104.24,104.12,195.969303]
[1644998321103,52.74584392,104.24,104.12,196.219303]
[1644998321904,52.74584392,104.24,104.15,14.3983]
[1644998322305,51.3879,104.24,104.15,14.3983]
[1644998322908,52.74584392,104.24,104.15,14.3983]
[1644998323304,51.3879,104.24,104.15,14.3983]
[1644998324306,52.74584392,104.24,104.15,14.3983]
[1644998325511,51.3879,104.24,104.15,14.3983]
[1644998326109,51.3879,104.24,104.15,14.6483]
[1644998326710,51.3879,104.24,104.15,14.3983]
[1644998328215,51.3879,104.24,104.15,111.8683]
[1644998328411,36.9921,104.24,104.15,112.1183]
[1644998328614,23.2021,104.24,104.15,114.27615901]
[1644998329010,23.2021,104.24,104.18,14.3932]
[1644998332015,23.6584,104.25,104.18,111.8632]
[1644998332419,1.35794392,104.27,104.18,114.27105901]
[1644998332616,1.35794392,104.27,104.18,41.77815901]
[1644998332814,1.35794392,104.26,104.18,139.24815901]
[1644998333014,1.35794392,104.26,104.19,48.32]
[1644998333218,1.35794392,104.26,104.2,14.3915]
[1644998335115,15.75004392,104.26,104.18,39.6206]
[1644998337422,1.35794392,104.25,104.18,39.6206]
[1644998338625,24.62924392,104.25,104.18,39.6206]
[1644998341028,22.62924392,104.25,104.18,39.6206]
[1644998344432,22.62924392,104.25,104.18,137.0906]
[1644998345855,17.10067571,104.28,104.18,137.0906]
[1644998346051,23.0952,104.27,104.18,153.79075901]
[1644998347554,23.3203,104.29,104.18,153.79075901]
[1644998347760,2.71057571,104.3,104.2,97.47]
[1644998347958,2.71057571,104.32,104.23,111.8525]
[1644998348157,2.71057571,104.33,104.23,111.8525]
[1644998348356,62.94997571,104.34,104.24,2.15785901]
[1644998348556,62.94997571,104.34,104.24,2.40785901]
[1644998349060,62.94997571,104.34,104.25,99.62785901]
[1644998349256,62.94997571,104.34,104.25,147.94785901]
[1644998349554,60.2394,104.34,104.26,2.15785901]
[1644998349955,60.2394,104.34,104.27,14.381]
[1644998353961,60.2394,104.34,104.27,111.851]
[1644998354661,45.8585,104.34,104.27,111.851]
[1644998357165,45.8585,104.34,104.27,114.00885901]
[1644998359169,45.8585,104.34,104.27,16.53885901]
[1644998363475,60.2395,104.34,104.27,16.53885901]
[1644998363675,60.2395,104.34,104.27,14.381]
[1644998365276,45.8585,104.34,104.27,14.381]
[1644998365681,45.8585,104.34,104.27,16.54465035]
[1644998367078,14.3786,104.36,104.27,16.79465035]
[1644998367280,14.3786,104.36,104.27,186.25195035]
[1644998367482,14.3768,104.37,104.27,186.25195035]
[1644998369279,37.7923,104.36,104.27,186.25195035]
[1644998369487,37.7923,104.36,104.27,88.78195035]
[1644998369782,37.7923,104.36,104.27,186.25195035]
[1644998370678,37.7923,104.36,104.27,88.78195035]
[1644998372383,37.7923,104.36,104.27,186.25195035]
[1644998372881,37.7923,104.36,104.27,88.78195035]
[1644998376288,40.50287571,104.36,104.27,88.78195035]
[1644998376487,40.50287571,104.36,104.27,16.54465035]
[1644998376689,97.47,104.34,104.24,2.16365035]
[1644998376887,14.3865,104.31,104.19,33.53585555]
[1644998377087,14.3865,104.31,104.2,26.85995035]
[1644998377288,23.8467,104.3,104.2,26.85995035]
[1644998377488,23.8467,104.3,104.21,97.47]
[1644998377691,23.8467,104.3,104.21,145.79]
[1644998378091,23.8467,104.3,104.23,14.3855]
[1644998379816,38.2323,104.3,104.23,14.3855]
[1644998396427,14.3847,104.31,104.23,111.8555]
[1644998396628,23.0032,104.32,104.26,14.3832]
[1644998399231,23.3313,104.33,104.26,125.8894]
[1644998399432,23.3313,104.33,104.27,2.16365035]
[1644998399632,23.3313,104.33,104.28,14.3797]
[1644998404739,37.4769,104.35,104.28,14.3797]
[1644998409351,23.0967,104.35,104.28,14.3797]
[1644998409552,23.0967,104.35,104.28,14.6297]
[1644998410555,23.0967,104.35,104.29,2.1637068]
[1644998411051,23.0967,104.35,104.3,14.3772]
[1644998414270,37.4778,104.35,104.29,14.3802]
[1644998414470,37.4778,104.35,104.27,145.404]
[1644998415169,37.4778,104.35,104.27,47.934]
[1644998415369,37.4778,104.35,104.27,72.7733]
[1644998415971,37.4778,104.35,104.29,14.38]
[1644998420374,23.0967,104.35,104.29,14.38]
[1644998420775,24.1111,104.38,104.29,14.63]
[1644998420981,24.1111,104.38,104.29,112.1]
[1644998421175,24.1111,104.38,104.3,2.15821822]
[1644998421377,24.1111,104.38,104.32,14.3729]
[1644998421774,14.3718,104.41,104.32,112.0929]
[1644998421976,14.3718,104.41,104.33,23.5335]
[1644998422177,14.3718,104.41,104.33,23.7835]
[1644998422375,22.8957,104.42,104.33,23.7835]
[1644998422576,23.6562,104.41,104.33,31.6375]
[1644998423583,23.6562,104.41,104.35,111.8414]
[1644998423779,22.8957,104.42,104.35,111.8414]
[1644998423983,22.8957,104.42,104.35,112.0914]
[1644998424177,22.8957,104.42,104.35,160.4114]
[1644998424378,3.17127742,104.45,104.35,160.4114]
[1644998424579,17.53927742,104.45,104.38,14.3671]
[1644998425688,3.17127742,104.45,104.38,14.3671]
[1644998425883,0.4536888,104.45,104.38,14.3671]
[1644998429490,14.8207888,104.45,104.38,14.3671]
[1644998429690,114.71132135,104.45,104.33,24.5761]
[1644998429990,23.5404,104.44,104.33,24.5761]
[1644998431188,23.5404,104.44,104.34,23.054]
[1644998431189,14.3694,104.43,104.34,23.054]
[1644998431689,23.9878,104.42,104.34,23.054]
[1644998432088,26.40833255,104.42,104.34,120.524]
[1644998432289,23.9878,104.42,104.34,37.4253]
[1644998432489,23.9878,104.42,104.34,37.6753]
[1644998432989,23.9878,104.42,104.34,37.4253]
[1644998434889,38.3589,104.42,104.34,37.4253]
[1644998435388,38.3589,104.42,104.34,134.8953]
[1644998435790,38.3589,104.42,104.34,37.4253]
[1644998436593,38.3589,104.42,104.34,37.6753]
[1644998436794,23.9878,104.42,104.34,39.83272176]
[1644998436992,23.9878,104.42,104.34,137.30272176]
[1644998438293,23.9878,104.42,104.34,39.83272176]
[1644998439696,38.3588,104.42,104.34,39.83272176]
[1644998441593,23.9878,104.42,104.35,97.47]
[1644998441792,23.9878,104.42,104.34,39.83272176]
[1644998442594,23.9878,104.42,104.34,137.30272176]
[1644998443494,23.9878,104.42,104.34,39.83272176]
[1644998444995,23.9878,104.42,104.34,137.30272176]
[1644998445394,14.3694,104.43,104.34,137.30272176]
[1644998445695,0.4536888,104.45,104.34,137.30272176]
[1644998445995,24.6735,104.44,104.34,185.62272176]
[1644998446794,39.0415,104.44,104.34,185.62272176]
[1644998449806,27.39108862,104.44,104.34,185.62272176]
[1644998451707,41.75838862,104.44,104.34,185.62272176]
[1644998454010,27.39108862,104.44,104.34,185.62272176]
[1644998455332,27.39108862,104.44,104.34,202.03424173]
[1644998455737,27.39108862,104.44,104.34,185.62272176]
[1644998456234,27.39108862,104.44,104.34,202.03424173]
[1644998456640,24.6735,104.44,104.34,202.03424173]
[1644998457645,24.6735,104.44,104.34,185.62272176]
[1644998458044,24.6735,104.44,104.34,202.03424173]
[1644998458345,14.8196888,104.45,104.39,111.8349]
[1644998458545,0.4536888,104.45,104.39,111.8349]
[1644998458747,0.4536888,104.45,104.4,2.15199107]
[1644998459544,0.4536888,104.45,104.41,14.363]
[1644998461245,1.81138096,104.45,104.41,14.363]
[1644998461847,23.04323408,104.47,104.41,14.363]
[1644998462045,37.40693408,104.47,104.41,14.363]
[1644998465148,39.82746663,104.47,104.4,14.3654]
[1644998465353,146.53905525,104.47,104.37,26.67299107]
[1644998465549,146.53905525,104.47,104.31,48.5472]
[1644998465748,146.53905525,104.47,104.33,24.0951]
[1644998465749,5.43228328,104.46,104.33,24.0951]
[1644998465952,14.3692,104.43,104.33,24.0951]
[1644998466150,23.6512,104.42,104.33,24.0951]
[1644998466351,23.6512,104.42,104.37,14.3695]
[1644998467355,38.0208,104.42,104.35,14.3722]
[1644998467555,40.44133255,104.42,104.35,14.3722]
[1644998468851,40.44133255,104.42,104.34,14.3732]
[1644998469251,38.0208,104.42,104.34,14.3732]
[1644998470751,38.0208,104.42,104.33,14.3745]
[1644998470951,40.44133255,104.42,104.33,14.3745]
[1644998471152,97.47,104.41,104.33,14.3745]
[1644998471354,14.3751,104.39,104.33,14.3745]
[1644998472453,14.3751,104.39,104.33,16.52649107]
[1644998479059,14.3751,104.39,104.33,14.3745]
[1644998480460,14.3362,104.39,104.33,14.3745]
[1644998489799,14.3362,104.39,104.33,13.3745]
[1644998491902,114.22673255,104.39,104.29,50.06818139]
[1644998492101,22.7317,104.38,104.26,49.3405]
[1644998492302,14.3793,104.35,104.26,49.3405]
[1644998492506,24.5517,104.34,104.26,49.3405]
[1644998492901,24.5517,104.34,104.28,14.3797]
[1644998493902,38.9323,104.34,104.28,14.3797]
[1644998506817,14.3806,104.34,104.28,14.3797]
[1644998507033,71.7975,104.38,104.28,114.00238013]
[1644998507218,23.0412,104.37,104.31,14.3771]
[1644998508914,14.3775,104.36,104.31,14.3771]
[1644998509119,23.8679,104.38,104.31,14.3771]
[1644998509314,23.8679,104.38,104.31,21.0421]
[1644998510320,23.8679,104.38,104.31,14.3771]
[1644998510916,38.2431,104.38,104.31,14.3771]
[1644998511118,23.5585,104.39,104.31,137.45128013]
[1644998511318,23.5585,104.39,104.31,144.12228013]
[1644998512321,47.9144,104.42,104.31,46.65228013]
[1644998512520,23.7757,104.41,104.31,40.23128013]
[1644998512922,14.373,104.4,104.31,40.23128013]
[1644998513819,38.1473,104.41,104.31,137.70128013]
[1644998514617,50.62298862,104.44,104.31,137.70128013]
[1644998514819,22.6444,104.43,104.31,162.59808013]
[1644998515025,22.6444,104.43,104.31,182.42378013]
[1644998515218,22.6444,104.43,104.33,97.47]
[1644998515420,26.11688862,104.46,104.36,14.3672]
[1644998515618,3.31982982,104.47,104.37,120.0534]
[1644998515818,0.6022412,104.47,104.37,120.0534]
[1644998516018,0.6022412,104.47,104.37,24.73608013]
[1644998516220,14.9659412,104.47,104.38,2.15268013]
[1644998516422,0.6022412,104.47,104.4,14.364]
[1644998516622,0.6022412,104.47,104.41,97.47]
[1644998516820,0.6022412,104.47,104.41,2.15268013]
[1644998517222,0.6022412,104.47,104.39,24.0011]
[1644998517422,2.42053255,104.46,104.38,2.15268013]
[1644998517627,2.42053255,104.46,104.38,14.3659]
[1644998517922,2.42053255,104.46,104.3,14.6844]
[1644998518121,53.27902117,104.46,104.31,47.7815]
[1644998518320,53.27902117,104.46,104.31,145.2515]
[1644998518522,62.507,104.46,104.34,14.3718]
[1644998519121,2.42053255,104.45,104.34,14.6218]
[1644998519322,48.1409,104.46,104.34,135.9139]
[1644998519523,48.1409,104.46,104.34,152.32541997]
[1644998520123,48.1409,104.46,104.35,97.47]
[1644998520328,2.42053255,104.45,104.35,97.47]
[1644998520624,14.368,104.45,104.37,14.3678]
[1644998521222,16.78853255,104.45,104.37,14.3678]